[Event "Titled Tuesday Blitz October 18 Late 2022"]
[White "Celestino, Rafael Teixeira"]
[Black "Yi, Richard"]
[WhiteFideId "2108925"]
[BlackFideId "2079518"]
[WhiteElo "2362"]
[BlackElo "2147"]
[Result "0-1"]
[Round "03"]
[TimeControl "180+1"]
[Date "2022.10.19"]
[WhiteClock "0:00:10"]
[BlackClock "0:00:11"]

1. e4 {[%clk 0:03:00]}  e6 {[%clk 0:03:00]} 2. d4 {[%clk 0:02:52]}  d5 {[%clk 0:03:00]} 3. Bd3 {[%clk 0:02:52]}  dxe4 {[%clk 0:02:59]} 4. Bxe4 {[%clk 0:02:53]}  Nf6 {[%clk 0:02:59]} 5. Bf3 {[%clk 0:02:53]}  c5 {[%clk 0:03:00]} 6. Ne2 {[%clk 0:02:53]}  Nc6 {[%clk 0:02:59]} 7. Be3 {[%clk 0:02:53]}  Nd5 {[%clk 0:02:52]} 8. Bxd5 {[%clk 0:02:31]}  Qxd5 {[%clk 0:02:51]} 9. dxc5 {[%clk 0:02:24]}  Qxg2 {[%clk 0:02:43]} 10. Rg1 {[%clk 0:02:24]}  Qxh2 {[%clk 0:02:41]} 11. Nbc3 {[%clk 0:02:05]}  Qb8 {[%clk 0:01:44]} 12. Ne4 {[%clk 0:01:41]}  Qe5 {[%clk 0:01:43]} 13. Qd3 {[%clk 0:01:12]}  Bd7 {[%clk 0:01:23]} 14. Bf4 {[%clk 0:00:22]}  Qxb2 {[%clk 0:01:20]} 15. Rd1 {[%clk 0:00:23]}  Be7 {[%clk 0:00:36]} 16. N2c3 {[%clk 0:00:17]}  O-O-O {[%clk 0:00:17]} 17. Nb5 {[%clk 0:00:15]}  e5 {[%clk 0:00:12]} 18. Bh2 {[%clk 0:00:14]}  Nd4 {[%clk 0:00:10]} 19. Nbd6+ {[%clk 0:00:10]}  Bxd6 {[%clk 0:00:07]} 20. Nxd6+ {[%clk 0:00:11]}  Kb8 {[%clk 0:00:07]} 21. Bxe5 {[%clk 0:00:12]}  Nxc2+ {[%clk 0:00:05]} 22. Kf1 {[%clk 0:00:09]}  Qxe5 {[%clk 0:00:06]} 23. Qxc2 {[%clk 0:00:08]}  Bh3+ {[%clk 0:00:05]} 24. Rg2 {[%clk 0:00:06]}  Bxg2+ {[%clk 0:00:06]} 25. Kxg2 {[%clk 0:00:07]}  Qg5+ {[%clk 0:00:07]} 26. Kf1 {[%clk 0:00:07]}  Qf6 {[%clk 0:00:06]} 27. Qb3 {[%clk 0:00:05]}  Rd7 {[%clk 0:00:06]} 28. Rb1 {[%clk 0:00:04]}  b6 {[%clk 0:00:02]} 29. Ne4 {[%clk 0:00:03]}  Qe6 {[%clk 0:00:02]} 30. Qg3+ {[%clk 0:00:03]}  Ka8 {[%clk 0:00:02]} 31. Qf3 {[%clk 0:00:02]}  Qc4+ {[%clk 0:00:02]} 32. Kg1 {[%clk 0:00:02]}  Qd5 {[%clk 0:00:03]} 33. Ng5 {[%clk 0:00:01]}  Qxf3 {[%clk 0:00:03]} 34. Nxf3 {[%clk 0:00:02]}  bxc5 {[%clk 0:00:03]} 35. Ne5 {[%clk 0:00:02]}  Rc7 {[%clk 0:00:03]} 36. Nc4 {[%clk 0:00:02]}  Re8 {[%clk 0:00:04]} 37. Rb5 {[%clk 0:00:02]}  Rd8 {[%clk 0:00:03]} 38. Kg2 {[%clk 0:00:03]}  a6 {[%clk 0:00:04]} 39. Ra5 {[%clk 0:00:03]}  Ka7 {[%clk 0:00:04]} 40. Ne5 {[%clk 0:00:03]}  Rd5 {[%clk 0:00:04]} 41. Nf3 {[%clk 0:00:02]}  Rf5 {[%clk 0:00:04]} 42. Ra3 {[%clk 0:00:02]}  c4 {[%clk 0:00:04]} 43. Nh4 {[%clk 0:00:03]}  Rg5+ {[%clk 0:00:04]} 44. Kf3 {[%clk 0:00:02]}  c3 {[%clk 0:00:04]} 45. Kf4 {[%clk 0:00:02]}  Rgc5 {[%clk 0:00:03]} 46. Rxc3 {[%clk 0:00:03]}  Rc4+ {[%clk 0:00:04]} 47. Rxc4 {[%clk 0:00:03]}  Rxc4+ {[%clk 0:00:05]} 48. Kg3 {[%clk 0:00:03]}  Rc2 {[%clk 0:00:05]} 49. Nf5 {[%clk 0:00:04]}  g6 {[%clk 0:00:05]} 50. Nd6 {[%clk 0:00:05]}  f5 {[%clk 0:00:05]} 51. Nf7 {[%clk 0:00:04]}  Rxa2 {[%clk 0:00:05]} 52. Ng5 {[%clk 0:00:05]}  Ra3+ {[%clk 0:00:06]} 53. f3 {[%clk 0:00:03]}  h6 {[%clk 0:00:06]} 54. Nf7 {[%clk 0:00:02]}  Rb3 {[%clk 0:00:05]} 55. Nxh6 {[%clk 0:00:01]}  a5 {[%clk 0:00:05]} 56. Nf7 {[%clk 0:00:01]}  a4 {[%clk 0:00:05]} 57. Ne5 {[%clk 0:00:02]}  g5 {[%clk 0:00:05]} 58. Nc6+ {[%clk 0:00:01]}  Kb6 {[%clk 0:00:05]} 59. Nd4 {[%clk 0:00:02]}  Rb4 {[%clk 0:00:04]} 60. Nxf5 {[%clk 0:00:03]}  a3 {[%clk 0:00:04]} 61. Ne3 {[%clk 0:00:04]}  a2 {[%clk 0:00:04]} 62. Nd5+ {[%clk 0:00:04]}  Kc5 {[%clk 0:00:04]} 63. Nxb4 {[%clk 0:00:05]}  Kxb4 {[%clk 0:00:05]} 64. Kg4 {[%clk 0:00:06]}  a1=Q {[%clk 0:00:05]} 65. Kxg5 {[%clk 0:00:07]}  Qe5+ {[%clk 0:00:05]} 66. Kg4 {[%clk 0:00:07]}  Qf6 {[%clk 0:00:05]} 67. f4 {[%clk 0:00:08]}  Kc5 {[%clk 0:00:05]} 68. f5 {[%clk 0:00:08]}  Kd4 {[%clk 0:00:06]} 69. Kf4 {[%clk 0:00:09]}  Kd5 {[%clk 0:00:06]} 70. Kg4 {[%clk 0:00:09]}  Ke5 {[%clk 0:00:07]} 71. Kh5 {[%clk 0:00:09]}  Qxf5+ {[%clk 0:00:08]} 72. Kh6 {[%clk 0:00:09]}  Qg4 {[%clk 0:00:09]} 73. Kh7 {[%clk 0:00:09]}  Kf6 {[%clk 0:00:10]} 74. Kh8 {[%clk 0:00:10]}  Kf7 {[%clk 0:00:10]} 75. Kh7 {[%clk 0:00:10]}  Qg7# {[%clk 0:00:11]} 0-1


[Site "https://www.chess.com"]

[Event "Titled Tuesday Blitz October 18 Late 2022"]
[White "Curtis, John"]
[Black "Moaataz, Ayah"]
[WhiteFideId "3200256"]
[BlackFideId "10615873"]
[WhiteElo "2203"]
[BlackElo "1993"]
[Result "1-0"]
[Round "03"]
[TimeControl "180+1"]
[Date "2022.10.19"]
[WhiteClock "0:00:52"]
[BlackClock "0:01:26"]

1. e4 {[%clk 0:02:48]}  c6 {[%clk 0:02:58]} 2. d4 {[%clk 0:02:46]}  d5 {[%clk 0:02:59]} 3. Nc3 {[%clk 0:02:39]}  dxe4 {[%clk 0:02:59]} 4. Nxe4 {[%clk 0:02:40]}  Nf6 {[%clk 0:02:59]} 5. Nxf6+ {[%clk 0:02:38]}  exf6 {[%clk 0:03:00]} 6. Bc4 {[%clk 0:02:37]}  Bd6 {[%clk 0:03:01]} 7. Qe2+ {[%clk 0:02:36]}  Qe7 {[%clk 0:02:59]} 8. Qxe7+ {[%clk 0:02:36]}  Kxe7 {[%clk 0:03:00]} 9. Ne2 {[%clk 0:02:34]}  Re8 {[%clk 0:02:59]} 10. Bf4 {[%clk 0:02:32]}  Be6 {[%clk 0:02:54]} 11. Bxd6+ {[%clk 0:02:30]}  Kxd6 {[%clk 0:02:55]} 12. Bxe6 {[%clk 0:02:29]}  Rxe6 {[%clk 0:02:55]} 13. Kd2 {[%clk 0:02:29]}  Nd7 {[%clk 0:02:54]} 14. c3 {[%clk 0:02:26]}  f5 {[%clk 0:02:50]} 15. Nf4 {[%clk 0:02:25]}  Re4 {[%clk 0:02:50]} 16. g3 {[%clk 0:02:20]}  g5 {[%clk 0:02:48]} 17. Nd3 {[%clk 0:02:10]}  Nb6 {[%clk 0:02:36]} 18. b3 {[%clk 0:02:05]}  Rae8 {[%clk 0:02:32]} 19. Rae1 {[%clk 0:02:03]}  Nd7 {[%clk 0:02:30]} 20. f3 {[%clk 0:02:02]}  Rxe1 {[%clk 0:02:29]} 21. Nxe1 {[%clk 0:02:01]}  g4 {[%clk 0:02:28]} 22. fxg4 {[%clk 0:02:00]}  fxg4 {[%clk 0:02:28]} 23. Rf1 {[%clk 0:02:01]}  Ke6 {[%clk 0:02:17]} 24. Nd3 {[%clk 0:01:56]}  f5 {[%clk 0:02:11]} 25. Re1+ {[%clk 0:01:55]}  Kf7 {[%clk 0:02:11]} 26. Rxe8 {[%clk 0:01:55]}  Kxe8 {[%clk 0:02:12]} 27. Ke3 {[%clk 0:01:55]}  Ke7 {[%clk 0:02:11]} 28. c4 {[%clk 0:01:52]}  a5 {[%clk 0:02:02]} 29. Nf4 {[%clk 0:01:33]}  Nf6 {[%clk 0:02:00]} 30. a3 {[%clk 0:01:18]}  Kd6 {[%clk 0:01:58]} 31. b4 {[%clk 0:01:16]}  axb4 {[%clk 0:01:57]} 32. axb4 {[%clk 0:01:16]}  Ne4 {[%clk 0:01:54]} 33. c5+ {[%clk 0:01:14]}  Ke7 {[%clk 0:01:53]} 34. d5 {[%clk 0:01:12]}  cxd5 {[%clk 0:01:49]} 35. Kd4 {[%clk 0:01:05]}  Nd2 {[%clk 0:01:47]} 36. b5 {[%clk 0:01:02]}  Nf3+ {[%clk 0:01:45]} 37. Kxd5 {[%clk 0:01:03]}  Nxh2 {[%clk 0:01:46]} 38. Ke5 {[%clk 0:01:03]}  Nf1 {[%clk 0:01:45]} 39. Nd5+ {[%clk 0:00:57]}  Kd7 {[%clk 0:01:43]} 40. Kf4 {[%clk 0:00:57]}  Ke6 {[%clk 0:01:36]} 41. c6 {[%clk 0:00:58]}  bxc6 {[%clk 0:01:35]} 42. b6 {[%clk 0:00:57]}  Kd7 {[%clk 0:01:33]} 43. b7 {[%clk 0:00:56]}  Nxg3 {[%clk 0:01:27]} 44. Kxg3 {[%clk 0:00:51]}  cxd5 {[%clk 0:01:26]} 45. b8=Q {[%clk 0:00:52]} 1-0


[Site "https://www.chess.com"]

[Event "Titled Tuesday Blitz October 18 Late 2022"]
[White "Deac, Bogdan-Daniel"]
[Black "miragha_yev"]
[WhiteFideId "1226380"]
[WhiteElo "2648"]
[BlackElo "2758"]
[Result "1-0"]
[Round "03"]
[TimeControl "180+1"]
[Date "2022.10.18"]
[WhiteClock "0:00:51"]
[BlackClock "0:00:39"]

1. d4 {[%clk 0:03:00]}  d5 {[%clk 0:03:00]} 2. c4 {[%clk 0:03:01]}  c6 {[%clk 0:03:00]} 3. Nf3 {[%clk 0:03:01]}  e6 {[%clk 0:02:59]} 4. Qc2 {[%clk 0:02:59]}  Nf6 {[%clk 0:02:58]} 5. Nbd2 {[%clk 0:02:59]}  Nbd7 {[%clk 0:02:55]} 6. g3 {[%clk 0:02:57]}  Be7 {[%clk 0:02:53]} 7. Bg2 {[%clk 0:02:57]}  O-O {[%clk 0:02:53]} 8. O-O {[%clk 0:02:57]}  b6 {[%clk 0:02:54]} 9. e4 {[%clk 0:02:57]}  Bb7 {[%clk 0:02:53]} 10. e5 {[%clk 0:02:53]}  Ne8 {[%clk 0:02:53]} 11. cxd5 {[%clk 0:02:53]}  cxd5 {[%clk 0:02:54]} 12. Re1 {[%clk 0:02:53]}  Ba6 {[%clk 0:02:36]} 13. Nf1 {[%clk 0:02:50]}  Qc8 {[%clk 0:02:34]} 14. Qd1 {[%clk 0:02:49]}  Qc4 {[%clk 0:02:34]} 15. Ne3 {[%clk 0:02:37]}  Qd3 {[%clk 0:02:26]} 16. Bd2 {[%clk 0:02:35]}  Bb7 {[%clk 0:02:16]} 17. Bf1 {[%clk 0:02:27]}  Qg6 {[%clk 0:02:16]} 18. h4 {[%clk 0:02:20]}  f6 {[%clk 0:02:10]} 19. Bb5 {[%clk 0:02:19]}  Rd8 {[%clk 0:02:09]} 20. Ng2 {[%clk 0:02:14]}  Nc7 {[%clk 0:02:00]} 21. Nf4 {[%clk 0:01:34]}  Qf7 {[%clk 0:02:00]} 22. Bxd7 {[%clk 0:01:21]}  Rxd7 {[%clk 0:02:01]} 23. Rc1 {[%clk 0:01:17]}  f5 {[%clk 0:01:55]} 24. Qa4 {[%clk 0:01:07]}  b5 {[%clk 0:01:19]} 25. Qxa7 {[%clk 0:01:04]}  Na6 {[%clk 0:01:01]} 26. Ng5 {[%clk 0:01:00]}  Bxg5 {[%clk 0:01:00]} 27. hxg5 {[%clk 0:01:01]}  Rc8 {[%clk 0:00:53]} 28. Qxb7 {[%clk 0:00:52]}  Rxc1 {[%clk 0:00:39]} 29. Qa8+ {[%clk 0:00:51]} 1-0


[Site "https://www.chess.com"]

[Event "Titled Tuesday Blitz October 18 Late 2022"]
[White "Decuigniere, Tom"]
[Black "Guzman Moneo, Alberto"]
[WhiteFideId "26093820"]
[BlackFideId "2209616"]
[WhiteElo "2223"]
[BlackElo "2157"]
[Result "0-1"]
[Round "03"]
[TimeControl "180+1"]
[Date "2022.10.19"]
[WhiteClock "0:00:03"]
[BlackClock "0:00:11"]

1. c4 {[%clk 0:03:00]}  e5 {[%clk 0:02:57]} 2. g3 {[%clk 0:03:00]}  f5 {[%clk 0:02:46]} 3. Bg2 {[%clk 0:03:00]}  Nf6 {[%clk 0:02:46]} 4. Nc3 {[%clk 0:02:59]}  Bb4 {[%clk 0:02:45]} 5. Nd5 {[%clk 0:02:59]}  Bc5 {[%clk 0:02:41]} 6. e3 {[%clk 0:02:59]}  c6 {[%clk 0:02:37]} 7. Nxf6+ {[%clk 0:02:58]}  Qxf6 {[%clk 0:02:37]} 8. Ne2 {[%clk 0:02:58]}  d6 {[%clk 0:02:34]} 9. d4 {[%clk 0:02:58]}  Bb6 {[%clk 0:02:33]} 10. O-O {[%clk 0:02:48]}  O-O {[%clk 0:02:30]} 11. b4 {[%clk 0:02:47]}  Be6 {[%clk 0:02:24]} 12. c5 {[%clk 0:02:40]}  Bc7 {[%clk 0:02:11]} 13. Bb2 {[%clk 0:02:38]}  Bc4 {[%clk 0:01:44]} 14. Qc2 {[%clk 0:02:33]}  Bxe2 {[%clk 0:01:43]} 15. Qxe2 {[%clk 0:02:34]}  d5 {[%clk 0:01:38]} 16. dxe5 {[%clk 0:02:20]}  Bxe5 {[%clk 0:01:37]} 17. Bxe5 {[%clk 0:02:21]}  Qxe5 {[%clk 0:01:38]} 18. Rfd1 {[%clk 0:02:19]}  a5 {[%clk 0:01:33]} 19. b5 {[%clk 0:02:17]}  Nd7 {[%clk 0:01:32]} 20. Rac1 {[%clk 0:02:16]}  a4 {[%clk 0:01:28]} 21. Qd3 {[%clk 0:02:05]}  Ra5 {[%clk 0:01:21]} 22. bxc6 {[%clk 0:01:56]}  bxc6 {[%clk 0:01:20]} 23. Qd4 {[%clk 0:01:49]}  Rb8 {[%clk 0:01:12]} 24. h4 {[%clk 0:01:27]}  a3 {[%clk 0:01:06]} 25. Rb1 {[%clk 0:01:16]}  Rab5 {[%clk 0:01:00]} 26. Rxb5 {[%clk 0:01:12]}  Rxb5 {[%clk 0:01:01]} 27. Qa4 {[%clk 0:01:07]}  Qc7 {[%clk 0:00:56]} 28. Bxd5+ {[%clk 0:01:02]}  Kf8 {[%clk 0:00:55]} 29. Qa8+ {[%clk 0:00:56]}  Nb8 {[%clk 0:00:51]} 30. Be6 {[%clk 0:00:36]}  Ra5 {[%clk 0:00:46]} 31. Rd7 {[%clk 0:00:23]}  Qxd7 {[%clk 0:00:23]} 32. Qxb8+ {[%clk 0:00:23]}  Qe8 {[%clk 0:00:21]} 33. Qd6+ {[%clk 0:00:22]}  Qe7 {[%clk 0:00:21]} 34. Qb8+ {[%clk 0:00:18]}  Qe8 {[%clk 0:00:20]} 35. Qe5 {[%clk 0:00:18]}  Qe7 {[%clk 0:00:15]} 36. Qxf5+ {[%clk 0:00:17]}  Qf6 {[%clk 0:00:15]} 37. Qe4 {[%clk 0:00:05]}  Rxc5 {[%clk 0:00:14]} 38. Bb3 {[%clk 0:00:05]}  Re5 {[%clk 0:00:12]} 39. Qd4 {[%clk 0:00:04]}  Rf5 {[%clk 0:00:10]} 40. Qb4+ {[%clk 0:00:03]}  Ke8 {[%clk 0:00:09]} 41. Qb8+ {[%clk 0:00:03]}  Ke7 {[%clk 0:00:09]} 42. Qc7+ {[%clk 0:00:03]}  Ke8 {[%clk 0:00:09]} 43. Qc8+ {[%clk 0:00:03]}  Ke7 {[%clk 0:00:09]} 44. Qc7+ {[%clk 0:00:04]}  Ke8 {[%clk 0:00:09]} 45. Qc8+ {[%clk 0:00:03]}  Ke7 {[%clk 0:00:09]} 46. Qb7+ {[%clk 0:00:04]}  Kd6 {[%clk 0:00:09]} 47. Qb4+ {[%clk 0:00:04]}  Kc7 {[%clk 0:00:10]} 48. Qd2 {[%clk 0:00:04]}  Rc5 {[%clk 0:00:09]} 49. Kg2 {[%clk 0:00:03]}  Qd6 {[%clk 0:00:10]} 50. Qe2 {[%clk 0:00:02]}  Qe5 {[%clk 0:00:10]} 51. Qf3 {[%clk 0:00:03]}  Qf5 {[%clk 0:00:10]} 52. e4 {[%clk 0:00:02]}  Qxf3+ {[%clk 0:00:10]} 53. Kxf3 {[%clk 0:00:03]}  Rc3+ {[%clk 0:00:10]} 54. Kf4 {[%clk 0:00:03]}  Rxb3 {[%clk 0:00:11]} 0-1


[Site "https://www.chess.com"]

[Event "Titled Tuesday Blitz October 18 Late 2022"]
[White "Dilanyan, Grigor"]
[Black "Can, Melih Kaan"]
[WhiteFideId "13303570"]
[BlackFideId "6317383"]
[WhiteElo "2264"]
[BlackElo "2029"]
[Result "1-0"]
[Round "03"]
[TimeControl "180+1"]
[Date "2022.10.19"]
[WhiteClock "0:00:27"]
[BlackClock "0:00:03"]

1. d4 {[%clk 0:03:00]}  d5 {[%clk 0:02:59]} 2. c4 {[%clk 0:03:00]}  c6 {[%clk 0:02:59]} 3. Nf3 {[%clk 0:03:00]}  Nf6 {[%clk 0:02:59]} 4. Nc3 {[%clk 0:02:59]}  a6 {[%clk 0:03:00]} 5. cxd5 {[%clk 0:02:59]}  cxd5 {[%clk 0:03:00]} 6. Bf4 {[%clk 0:02:59]}  e6 {[%clk 0:03:00]} 7. e3 {[%clk 0:02:58]}  b5 {[%clk 0:03:01]} 8. Bd3 {[%clk 0:02:56]}  Bb7 {[%clk 0:03:01]} 9. O-O {[%clk 0:02:56]}  Be7 {[%clk 0:03:02]} 10. Rc1 {[%clk 0:02:54]}  Nbd7 {[%clk 0:03:02]} 11. a4 {[%clk 0:02:46]}  b4 {[%clk 0:02:58]} 12. Nb1 {[%clk 0:02:47]}  Rc8 {[%clk 0:02:56]} 13. Nbd2 {[%clk 0:02:45]}  O-O {[%clk 0:02:52]} 14. Nb3 {[%clk 0:02:45]}  Nh5 {[%clk 0:02:47]} 15. Be5 {[%clk 0:02:28]}  Nxe5 {[%clk 0:02:43]} 16. Nxe5 {[%clk 0:02:28]}  Nf6 {[%clk 0:02:41]} 17. Qe2 {[%clk 0:02:29]}  a5 {[%clk 0:02:35]} 18. Bb5 {[%clk 0:02:24]}  Qb6 {[%clk 0:02:33]} 19. f4 {[%clk 0:02:17]}  Rxc1 {[%clk 0:02:19]} 20. Rxc1 {[%clk 0:02:17]}  Rc8 {[%clk 0:02:18]} 21. Rxc8+ {[%clk 0:02:14]}  Bxc8 {[%clk 0:02:19]} 22. Qc2 {[%clk 0:02:15]}  Bb7 {[%clk 0:02:06]} 23. f5 {[%clk 0:02:11]}  Ne4 {[%clk 0:01:56]} 24. fxe6 {[%clk 0:02:09]}  fxe6 {[%clk 0:01:57]} 25. Nd2 {[%clk 0:02:03]}  Nxd2 {[%clk 0:01:49]} 26. Qxd2 {[%clk 0:02:04]}  Qc7 {[%clk 0:01:47]} 27. Bd7 {[%clk 0:01:54]}  Bc8 {[%clk 0:01:47]} 28. Bb5 {[%clk 0:01:40]}  Bf6 {[%clk 0:01:40]} 29. Nd3 {[%clk 0:01:36]}  e5 {[%clk 0:01:18]} 30. dxe5 {[%clk 0:01:23]}  Bxe5 {[%clk 0:01:19]} 31. h3 {[%clk 0:01:02]}  h6 {[%clk 0:01:13]} 32. Ne1 {[%clk 0:00:57]}  Be6 {[%clk 0:01:05]} 33. Nf3 {[%clk 0:00:56]}  Bf6 {[%clk 0:01:04]} 34. Nd4 {[%clk 0:00:56]}  Bf7 {[%clk 0:01:01]} 35. Be2 {[%clk 0:00:49]}  Qe5 {[%clk 0:01:00]} 36. Bf3 {[%clk 0:00:48]}  Bg5 {[%clk 0:00:58]} 37. Kf2 {[%clk 0:00:48]}  Qh2 {[%clk 0:00:45]} 38. Nf5 {[%clk 0:00:44]}  Qe5 {[%clk 0:00:39]} 39. Nd4 {[%clk 0:00:43]}  Bh4+ {[%clk 0:00:39]} 40. Kf1 {[%clk 0:00:41]}  Bg5 {[%clk 0:00:38]} 41. Ke2 {[%clk 0:00:40]}  Bg6 {[%clk 0:00:34]} 42. Nc6 {[%clk 0:00:38]}  Qg3 {[%clk 0:00:20]} 43. Qxd5+ {[%clk 0:00:38]}  Kh7 {[%clk 0:00:15]} 44. Ne7 {[%clk 0:00:38]}  Bxe7 {[%clk 0:00:13]} 45. Qxa5 {[%clk 0:00:31]}  Qd6 {[%clk 0:00:10]} 46. Qb5 {[%clk 0:00:29]}  Bf6 {[%clk 0:00:07]} 47. b3 {[%clk 0:00:27]}  Bc3 {[%clk 0:00:07]} 48. Qd5 {[%clk 0:00:27]}  Qxd5 {[%clk 0:00:04]} 49. Bxd5 {[%clk 0:00:28]}  Be5 {[%clk 0:00:03]} 50. e4 {[%clk 0:00:27]}  Be8 {[%clk 0:00:03]} 51. Kd3 {[%clk 0:00:27]} 1-0


[Site "https://www.chess.com"]

[Event "Titled Tuesday Blitz October 18 Late 2022"]
[White "Fernandez De La Vara, Arnaldo"]
[Black "Mendez Fortes, Eduardo Jesus"]
[WhiteFideId "3518388"]
[BlackFideId "3502376"]
[WhiteElo "2387"]
[BlackElo "2307"]
[Result "1-0"]
[Round "03"]
[TimeControl "180+1"]
[Date "2022.10.19"]
[WhiteClock "0:00:04"]
[BlackClock "0:00:12"]

1. Nf3 {[%clk 0:03:00]}  d5 {[%clk 0:02:59]} 2. b3 {[%clk 0:03:01]}  Nf6 {[%clk 0:02:58]} 3. Bb2 {[%clk 0:03:01]}  e6 {[%clk 0:02:59]} 4. g3 {[%clk 0:03:02]}  c5 {[%clk 0:02:59]} 5. Bg2 {[%clk 0:03:01]}  Nc6 {[%clk 0:02:59]} 6. O-O {[%clk 0:03:01]}  d4 {[%clk 0:02:54]} 7. e3 {[%clk 0:03:00]}  Be7 {[%clk 0:02:54]} 8. Na3 {[%clk 0:02:41]}  O-O {[%clk 0:02:48]} 9. Nc4 {[%clk 0:02:42]}  Re8 {[%clk 0:02:38]} 10. Re1 {[%clk 0:02:32]}  Bf8 {[%clk 0:02:31]} 11. exd4 {[%clk 0:02:31]}  cxd4 {[%clk 0:02:31]} 12. Nce5 {[%clk 0:02:32]}  Nxe5 {[%clk 0:02:22]} 13. Rxe5 {[%clk 0:02:20]}  Bd6 {[%clk 0:02:21]} 14. Bxd4 {[%clk 0:02:16]}  Bxe5 {[%clk 0:02:21]} 15. Bxe5 {[%clk 0:02:17]}  Bd7 {[%clk 0:02:13]} 16. Nd4 {[%clk 0:02:10]}  Nd5 {[%clk 0:02:12]} 17. c4 {[%clk 0:02:04]}  f6 {[%clk 0:02:03]} 18. Bd6 {[%clk 0:01:50]}  Bc8 {[%clk 0:02:01]} 19. c5 {[%clk 0:01:37]}  b6 {[%clk 0:01:43]} 20. b4 {[%clk 0:00:55]}  Bb7 {[%clk 0:01:27]} 21. Qb3 {[%clk 0:00:50]}  Qd7 {[%clk 0:01:19]} 22. Re1 {[%clk 0:00:45]}  Kh8 {[%clk 0:01:14]} 23. h4 {[%clk 0:00:34]}  a5 {[%clk 0:01:11]} 24. a3 {[%clk 0:00:30]}  axb4 {[%clk 0:01:11]} 25. axb4 {[%clk 0:00:31]}  Ra4 {[%clk 0:01:06]} 26. c6 {[%clk 0:00:09]}  Bxc6 {[%clk 0:00:59]} 27. Nxc6 {[%clk 0:00:10]}  Qxc6 {[%clk 0:00:59]} 28. b5 {[%clk 0:00:10]}  Qxd6 {[%clk 0:00:47]} 29. Qxa4 {[%clk 0:00:10]}  Rd8 {[%clk 0:00:43]} 30. Qc4 {[%clk 0:00:07]}  e5 {[%clk 0:00:41]} 31. d4 {[%clk 0:00:07]}  exd4 {[%clk 0:00:29]} 32. Bxd5 {[%clk 0:00:07]}  h6 {[%clk 0:00:27]} 33. Be4 {[%clk 0:00:07]}  d3 {[%clk 0:00:26]} 34. Rd1 {[%clk 0:00:08]}  d2 {[%clk 0:00:26]} 35. Bc2 {[%clk 0:00:08]}  Qe5 {[%clk 0:00:25]} 36. Qe4 {[%clk 0:00:08]}  Qxe4 {[%clk 0:00:22]} 37. Bxe4 {[%clk 0:00:09]}  Rd4 {[%clk 0:00:22]} 38. f3 {[%clk 0:00:08]}  Kg8 {[%clk 0:00:20]} 39. Kf2 {[%clk 0:00:07]}  Kf7 {[%clk 0:00:21]} 40. Ke3 {[%clk 0:00:07]}  Rb4 {[%clk 0:00:21]} 41. Bc6 {[%clk 0:00:07]}  Rb3+ {[%clk 0:00:20]} 42. Ke2 {[%clk 0:00:08]}  Ke6 {[%clk 0:00:20]} 43. Rxd2 {[%clk 0:00:08]}  Ke5 {[%clk 0:00:20]} 44. Rd7 {[%clk 0:00:08]}  g5 {[%clk 0:00:20]} 45. h5 {[%clk 0:00:07]}  Rb2+ {[%clk 0:00:19]} 46. Kf1 {[%clk 0:00:07]}  Rh2 {[%clk 0:00:20]} 47. g4 {[%clk 0:00:06]}  Kf4 {[%clk 0:00:20]} 48. Rf7 {[%clk 0:00:06]}  Ke3 {[%clk 0:00:20]} 49. Rxf6 {[%clk 0:00:05]}  Rf2+ {[%clk 0:00:20]} 50. Kg1 {[%clk 0:00:04]}  Rb2 {[%clk 0:00:20]} 51. Rxh6 {[%clk 0:00:04]}  Rb1+ {[%clk 0:00:21]} 52. Kg2 {[%clk 0:00:05]}  Rb2+ {[%clk 0:00:20]} 53. Kg3 {[%clk 0:00:06]}  Rb1 {[%clk 0:00:21]} 54. Re6+ {[%clk 0:00:06]}  Kd4 {[%clk 0:00:20]} 55. h6 {[%clk 0:00:07]}  Rh1 {[%clk 0:00:20]} 56. Kg2 {[%clk 0:00:07]}  Rh4 {[%clk 0:00:20]} 57. Be4 {[%clk 0:00:07]}  Ke3 {[%clk 0:00:20]} 58. h7 {[%clk 0:00:07]}  Kf4 {[%clk 0:00:21]} 59. Re8 {[%clk 0:00:06]}  Ke3 {[%clk 0:00:19]} 60. h8=Q {[%clk 0:00:05]}  Rh2+ {[%clk 0:00:12]} 61. Kxh2 {[%clk 0:00:04]}  Kf2 {[%clk 0:00:12]} 62. Qd4+ {[%clk 0:00:04]}  Kf1 {[%clk 0:00:12]} 63. Bd3# {[%clk 0:00:04]} 1-0


[Site "https://www.chess.com"]

[Event "Titled Tuesday Blitz October 18 Late 2022"]
[White "Fernandez Siles, Luis"]
[Black "Al Hosani, Omran"]
[WhiteFideId "2209420"]
[BlackFideId "9308733"]
[WhiteElo "2186"]
[BlackElo "2167"]
[Result "0-1"]
[Round "03"]
[TimeControl "180+1"]
[Date "2022.10.19"]
[WhiteClock "0:00:14"]
[BlackClock "0:00:31"]

1. e4 {[%clk 0:03:00]}  e5 {[%clk 0:02:58]} 2. Nf3 {[%clk 0:02:58]}  Nc6 {[%clk 0:02:56]} 3. d4 {[%clk 0:02:52]}  exd4 {[%clk 0:02:54]} 4. Bc4 {[%clk 0:02:52]}  Nf6 {[%clk 0:02:55]} 5. O-O {[%clk 0:02:49]}  Nxe4 {[%clk 0:02:55]} 6. Nc3 {[%clk 0:02:49]}  Nd6 {[%clk 0:02:41]} 7. Nxd4 {[%clk 0:02:24]}  Nxc4 {[%clk 0:02:30]} 8. Nxc6 {[%clk 0:02:11]}  dxc6 {[%clk 0:02:28]} 9. Qe2+ {[%clk 0:02:10]}  Be6 {[%clk 0:02:27]} 10. f4 {[%clk 0:01:54]}  Bc5+ {[%clk 0:01:58]} 11. Kh1 {[%clk 0:01:53]}  Qe7 {[%clk 0:01:54]} 12. Re1 {[%clk 0:01:27]}  Nd6 {[%clk 0:01:40]} 13. Qe5 {[%clk 0:00:54]}  Nf5 {[%clk 0:01:34]} 14. g4 {[%clk 0:00:45]}  Bd4 {[%clk 0:01:13]} 15. Qe2 {[%clk 0:00:32]}  Bxc3 {[%clk 0:01:11]} 16. bxc3 {[%clk 0:00:29]}  Nd6 {[%clk 0:00:47]} 17. Kg1 {[%clk 0:00:20]}  g6 {[%clk 0:00:38]} 18. f5 {[%clk 0:00:16]}  gxf5 {[%clk 0:00:38]} 19. Qe5 {[%clk 0:00:15]}  Rg8 {[%clk 0:00:35]} 20. Ba3 {[%clk 0:00:14]}  Rxg4+ {[%clk 0:00:33]} 21. Kf2 {[%clk 0:00:14]}  Qh4+ {[%clk 0:00:31]} 0-1


[Site "https://www.chess.com"]